lending/lending_fUSD_20240711
["ID","MTS","AMOUNT","RATE_DAILY","PERIOD"]
[331700159,1720661431856,-150.0,0.00012698,2]
[331700160,1720661431865,-1470.11241153,0.00012699,2]
[331700161,1720661431876,-3179.53007694,0.00012699,2]
[331700162,1720661431924,-3697.66751153,0.00012699,2]
[331700163,1720661431934,-250.0,0.00012736,2]
[331700164,1720661431944,-2441.22,0.00012737,2]
[331700165,1720661431956,-167.63,0.00012751,2]
[331700166,1720661431966,-1001.6,0.00012751,2]
[331700167,1720661431976,-5071.93139219,0.00012898,2]
[331700168,1720661431986,-200.0,0.00012909,2]
[331700169,1720661431996,-499.99,0.00012909,2]
[331700170,1720661432006,-295.41,0.00012909,2]
[331700171,1720661432015,-2735.18245638,0.00012918,2]
[331700172,1720661432027,-3754.45,0.00012918,2]
[331700173,1720661432039,-1028.79,0.00012918,2]
[331700174,1720661432052,-154.57754362,0.00012918,2]
[331700175,1720661432063,-152.32,0.00012982,2]
[331700176,1720661432073,-322.94111661,0.00013,2]
[331700177,1720661432086,-412.81053676,0.00013,2]
[331700178,1720661432099,-514.24834663,0.00013,2]
[331700180,1720661432108,-370.99076735,0.00013128,2]
[331700182,1720661432117,-300.0,0.00013128,2]
[331700184,1720661432127,-155.0,0.00013128,2]
[331700186,1720661432136,-2454.8182,0.00013474,2]
[331700188,1720661432146,-227.29136124,0.00013516,2]
[331700190,1720661432155,-431.20325619,0.00013699,2]
[331700193,1720661432166,-251.15674381,0.00013699,2]
[331700195,1720661432175,-250.0,0.00013699,2]
[331700196,1720661432184,-200.0,0.00013699,2]
[331700199,1720661432194,-80.57069748,0.00013802,2]
[331700201,1720661432205,-174.42930252,0.00013802,2]
[331700203,1720661432214,-281.84372382,0.0001386,2]
[331700205,1720661432226,-1309.52972618,0.0001386,2]
[331700207,1720661432235,-200.0,0.00013887,2]
[331700209,1720661432245,-200.0,0.00013888,2]
[331700211,1720661432255,-220.24,0.0001389,3]
[331700213,1720661432264,-197.97705073,0.000139,2]
[331700214,1720661432273,-382.6413882,0.000139,2]
[331700215,1720661432282,-318.66523882,0.000139,2]
[331700216,1720661432292,-865.01919276,0.000139,2]
[331700217,1720661432301,-500.0,0.0001393,2]
[331700218,1720661432310,-233.23104244,0.0001393,2]
[331700219,1720661432321,-266.76895756,0.0001393,2]
[331700220,1720661432330,-500.0,0.0001393,2]
[331700221,1720661432339,-500.0,0.0001393,2]
[331700222,1720661432348,-489.54175532,0.0001393,2]
[331700225,1720661437879,-54.74174468,0.0001393,2]
[331700226,1720661437888,-198.39625256,0.0001399,2]
[331700227,1720661437898,-79.36200276,0.00013999,2]
[331700228,1720661437909,-10701.24322294,0.00013999,2]
[331700229,1720661437919,-2476.0765508,0.00013999,2]
[331700230,1720661437928,-500.0,0.00013999,2]
[331700231,1720661437938,-22320.49409867,0.00013999,2]
[331700232,1720661437950,-585.41820824,0.00013999,2]
[331700233,1720661437962,-319.90305941,0.00013999,2]
[331700234,1720661438022,-7299.58887828,0.00013999,2]
[331700250,1720661438034,-588.92864125,0.00013999,2]
[331700252,1720661438323,-530.80715327,0.00013999,2]
[331700255,1720661438336,-277.761,0.00013999,2]
[331700257,1720661438348,-398.64828018,0.00013999,2]
[331700259,1720661438359,-610.779927,0.00013999,2]
[331700261,1720661438371,-714.662132,0.00013999,2]
[331700263,1720661438383,-394.12782113,0.00013999,2]
[331700266,1720661438398,-448.53343064,0.00013999,2]
[331700268,1720661438411,-13732.18757775,0.00013999,2]
[331700270,1720661438423,-710.95025,0.00013999,2]
[331700273,1720661438434,-8889.24334528,0.00013999,2]
[331700275,1720661438449,-688.5,0.00013999,2]
[331700278,1720661438466,-101.7384272,0.00013999,2]
[331700280,1720661438476,-500.0,0.00013999,2]
[331700282,1720661438486,-343.8994163,0.00013999,2]
[331700284,1720661438498,-675.74854971,0.00013999,2]
[331700286,1720661438511,-1198.32203399,0.00013999,2]
[331700288,1720661438520,-500.0,0.00013999,2]
[331700290,1720661438530,-656.4,0.00013999,2]
[331700292,1720661438540,-2092.43,0.00013999,2]
[331700294,1720661438550,-1272.19,0.00013999,2]
[331700296,1720661438559,-500.0,0.00013999,2]
[331700298,1720661438572,-154.51570006,0.00013999,2]
[331700300,1720661438582,-500.0,0.00013999,2]
[331700302,1720661438592,-593.78120789,0.00013999,2]
[331700304,1720661438605,-176.65446642,0.00013999,2]
[331700306,1720661438614,-213.18261086,0.00013999,2]
[331700308,1720661438625,-890.67181184,0.00013999,2]
[331700310,1720661438635,-542.0,0.00014,2]
[331700312,1720661438645,-8624.66299848,0.00014,2]
[331700314,1720661438657,-20328.91419319,0.00014,2]
[331700317,1720661438670,-3453.15224832,0.00014,2]
[331700319,1720661438682,-6729.2454671,0.00014,2]
[331700321,1720661438695,-2821.35211378,0.00014,2]
[331700323,1720661438708,-1847.439928,0.00014,2]
[331700326,1720661438721,-13064.73106199,0.00014,2]
[331700436,1720661439920,-227.30730583,0.00013472,2]
[331700438,1720661439931,-224.53008322,0.00013999,2]
[331700440,1720661439941,-8820.43562658,0.00014,2]
[331700442,1720661439953,-1192.0,0.00014,2]
[331700444,1720661439964,-337.9806,0.00014,2]
[331700447,1720661439976,-500.0,0.00014,2]
[331700449,1720661439988,-1009.71667059,0.00014,2]
[331700450,1720661439999,-270.05226392,0.00014,2]
[331700451,1720661440012,-6695.51360038,0.00014,2]
[331700452,1720661440024,-265.1286,0.00014,2]
[331700453,1720661440036,-413.7332465,0.00014,2]
[331700454,1720661440050,-1058.18044309,0.00014,2]
[331700455,1720661440142,-47517.9920305,0.00014,2]
[331700456,1720661440154,-73670.09760241,0.00014,2]
[331700457,1720661440164,-104194.20871297,0.00014,2]
[331700458,1720661440176,-1852.95989709,0.00014,2]
[331700459,1720661440187,-222613.45660476,0.00014,2]
[331700460,1720661440199,-779084.4079704,0.00014,2]
[331700461,1720661440208,-2000.0,0.00014,2]
[331700462,1720661440218,-70246.76194915,0.00014,2]
[331700463,1720661440229,-403.47012699,0.00014,2]
[331700464,1720661440242,-15591.45045805,0.00014,2]
[331700465,1720661440340,-66346.02917856,0.00014,2]
[331700528,1720661442794,-292.29795817,0.00013999,2]
[331700529,1720661442804,-272.7682413,0.00013999,2]
[331700530,1720661442814,-296.89060395,0.00013999,2]
[331700531,1720661442823,-1448.15374125,0.00014,2]
[331700532,1720661442835,-9740.50564142,0.00014,2]
[331700533,1720661442973,-19437.75170967,0.00014,2]
[331700534,1720661442985,-9035.707166,0.00014,2]
[331700535,1720661442997,-261.4769987,0.00014,2]
[331700536,1720661443008,-598.32004096,0.00014,2]
[331700537,1720661443019,-397.00005046,0.00014,2]
[331700538,1720661445486,-6099.87879838,0.00014,2]
[331700539,1720661445497,-1200.25651494,0.00014,2]
[331700540,1720661445508,-3977.57470231,0.00014,2]
[331700541,1720661445519,-461.30189036,0.00014,2]
[331700542,1720661445541,-365.0,0.00014,2]
[331700543,1720661445553,-3291.55431609,0.00014,2]
[331700561,1720661445959,-828.77754164,0.000139,2]
[331700562,1720661445970,-120.87245836,0.00013999,2]
[331700563,1720661445983,-55.06680718,0.00013999,2]
[331700564,1720661445993,-500.0,0.00013999,2]
[331700565,1720661446002,-51305.13871994,0.00014,2]
[331700566,1720661446015,-349.999995,0.00014,2]
[331700567,1720661446028,-459.4508895,0.00014,2]
[331700568,1720661446042,-2103.96619709,0.00014,2]
[331700569,1720661446055,-4803.45941549,0.00014,2]
[331700570,1720661446067,-2871.0340909,0.00014,2]
[331700571,1720661446078,-5819.84919765,0.00014,2]
[331700572,1720661446089,-296.67487457,0.00014,2]
[331700573,1720661446103,-2066.50353201,0.00014,2]
[331700574,1720661446143,-9769.29912051,0.00014,2]
[331700575,1720661446155,-565.134902,0.00014,2]
[331700576,1720661446169,-8259.64506002,0.00014,2]
[331700577,1720661446182,-16851.56,0.00014,2]
[331700578,1720661446194,-1323.72452143,0.00014,2]
[331700579,1720661446206,-5257.4776278,0.00014,2]
[331700580,1720661446220,-432.05266282,0.00014,2]
[331700581,1720661446232,-5322.75488516,0.00014,2]
[331700582,1720661446245,-418.06723889,0.00014,2]
[331700583,1720661446256,-31510.8173826,0.00014,2]
[331700584,1720661446322,-264.208,0.00014,2]
[331700591,1720661645429,2526.46601337,0.000118,2]
[331700592,1720661689984,681.34020999,0.000118,2]
[331700593,1720661793482,614.47,0.00010502,2]
[331700603,1720662025715,634.74364569,0.00011199,2]
[331700605,1720662113177,255.52685328,0.00011199,2]
[331700606,1720662113601,190.52867322,0.00011199,2]
[331700607,1720662121428,265.30730493,0.00011199,2]
[331700608,1720662133806,219.1375733,0.00011199,2]
[331700610,1720662171601,534.90397327,0.00011199,2]
[331700611,1720662197691,255.05821172,0.00011199,2]
[331700612,1720662217341,1018.80900876,0.00011199,2]
[331700624,1720662376415,651.32785576,0.00011199,2]
[331700631,1720662441576,2834.76553183,0.00011199,2]
[331700635,1720662476921,2732.60864952,0.00011199,2]
[331700638,1720662493109,583.74,0.00010482,2]
[331700639,1720662517597,366.92456365,0.00011199,2]
[331700645,1720662545632,5140.56158536,0.00011199,2]
[331700678,1720662575095,724.04102744,0.00011199,2]
[331700680,1720662610048,2380.46634958,0.00011199,2]
[331700683,1720662629366,155.27818474,0.00011199,2]
[331700686,1720662632837,-180.45232581,0.00012269,2]
[331700687,1720662632847,-304.72006586,0.00012273,2]
[331700688,1720662632856,-360.0,0.00012369,2]
[331700689,1720662632866,-1852.42,0.00012393,2]
[331700690,1720662632875,-250.0,0.00012404,2]
[331700691,1720662632885,-250.0,0.0001241,2]
[331700692,1720662632895,-152.32,0.00012424,2]
[331700693,1720662632905,-3293.06,0.00012429,2]
[331700694,1720662632914,-16.43470234,0.0001253,2]
[331700698,1720662633391,-25527.00529766,0.0001253,2]
[331700699,1720662633401,-247.0,0.00012553,2]
[331700700,1720662633412,-583.74,0.00012746,2]
[331700701,1720662633421,-261.72,0.00013016,2]
[331700702,1720662633431,-855.07,0.00013041,2]
[331700703,1720662633441,-855.07,0.00013041,2]
[331700704,1720662633450,-268.83,0.00013062,2]
[331700705,1720662633459,-268.83,0.00013066,2]
[331700706,1720662633469,-268.83,0.00013069,2]
[331700707,1720662633478,-268.83,0.00013073,2]
[331700708,1720662633487,-150.0,0.00013075,2]
[331700709,1720662633497,-268.83,0.00013076,2]
[331700710,1720662633506,-268.83,0.0001308,2]
[331700711,1720662633515,-268.83,0.00013083,2]
[331700712,1720662633525,-268.83,0.00013086,2]
[331700713,1720662633534,-268.83,0.0001309,2]
[331700714,1720662633543,-268.83,0.00013093,2]
[331700715,1720662633552,-268.83,0.00013097,2]
[331700716,1720662633562,-173.18,0.00013098,2]
[331700717,1720662633574,-855.07,0.000131,2]
[331700718,1720662633583,-844.05,0.000131,2]
[331700719,1720662633593,-855.07,0.000131,2]
[331700720,1720662633602,-855.07,0.000131,2]
[331700721,1720662633612,-268.83,0.000131,2]
[331700722,1720662633621,-268.83,0.00013104,2]
[331700723,1720662633631,-268.83,0.00013107,2]
[331700724,1720662633640,-268.83,0.0001311,2]
[331700725,1720662633650,-268.83,0.00013114,2]
[331700726,1720662633660,-268.83,0.00013117,2]
[331700727,1720662633669,-268.83,0.00013121,2]
[331700728,1720662633679,-268.83,0.00013124,2]
[331700729,1720662633688,-268.83,0.00013127,2]
[331700730,1720662633697,-300.0,0.00013128,2]
[331700731,1720662633706,-529.01,0.00013178,2]
[331700732,1720662633715,-301.69,0.00013178,2]
[331700733,1720662633724,-358.83,0.00013178,2]
[331700734,1720662633734,-243.74,0.00013178,2]
[331700735,1720662633743,-151.29,0.00013178,2]
[331700736,1720662633752,-635.55,0.00013178,2]
[331700737,1720662633761,-14.2676573,0.00013178,2]
[331700738,1720662633773,-514.7423427,0.00013178,2]
[331700739,1720662633782,-165.03,0.00013178,2]
[331700740,1720662633792,-529.01,0.00013178,2]
[331700741,1720662633801,-165.03,0.00013178,2]
[331700742,1720662633810,-529.01,0.00013178,2]
[331700743,1720662633822,-529.01,0.00013178,2]
[331700744,1720662633831,-529.01,0.000132,2]
[331700745,1720662633840,-855.07,0.000132,2]
[331700746,1720662633849,-855.07,0.000132,2]
[331700747,1720662633858,-529.01,0.000132,2]
[331700748,1720662633869,-4310.9062383,0.000133,2]
[331700749,1720662633880,-1504.45923658,0.000133,2]
[331700750,1720662633890,-150.0,0.00013452,2]
[331700751,1720662633899,-150.0,0.00013452,2]
[331700752,1720662633909,-150.0,0.00013452,2]
[331700753,1720662633918,-60.83577437,0.00013543,2]
[331700754,1720662633930,-468.41599816,0.00013543,2]
[331700755,1720662633939,-153.35547116,0.00013543,2]
[331700756,1720662633951,-375.89630137,0.00013543,2]
[331700757,1720662633961,-508.08155464,0.00013574,2]
[331700758,1720662633972,-40.2564746,0.00013574,2]
[331700759,1720662633981,-409.9935254,0.00013574,2]
[331700760,1720662633993,-527.322701,0.00013574,2]
[331700761,1720662634004,-789.66747645,0.00013574,2]
[331700762,1720662634013,-1472.58815279,0.00013574,2]
[331700763,1720662634024,-254.39555006,0.00013574,2]
[331700764,1720662634033,-250.0,0.00013699,2]
[331700765,1720662634042,-1274.54,0.00013699,2]
[331700766,1720662634052,-991.07,0.00013699,2]
[331700767,1720662634061,-13.28085105,0.00013719,2]
[331700768,1720662634073,-876.58117216,0.00013719,2]
[331700769,1720662634084,-4110.13797679,0.00013719,2]
[331700770,1720662634095,-95.84918613,0.0001372,2]
[331700771,1720662634106,-404.0,0.0001372,2]
[331700772,1720662634118,-516.58889633,0.0001372,2]
[331700773,1720662634127,-1046.75799837,0.0001372,2]
[331700774,1720662634384,-873.80223529,0.00013736,2]
[331700775,1720662634397,-263.744,0.00013736,2]
[331700776,1720662634409,-60.88132918,0.00013736,2]
[331700777,1720662634419,-242.7108583,0.00013736,2]
[331700778,1720662634428,-173.65,0.00013738,2]
[331700779,1720662634438,-301.39165947,0.00013759,2]
[331700780,1720662635854,304.72006586,0.00011199,2]
[331700785,1720662638425,-534.35024517,0.00013516,2]
[331700788,1720662638435,-1182.39224596,0.00013736,2]
[331700790,1720662638446,-323.79774359,0.00013759,2]
[331700794,1720662638456,-150.0,0.00013767,2]
[331700797,1720662638466,-197.3202,0.0001378,2]
[331700799,1720662638475,-150.0,0.00013785,2]
[331700801,1720662638485,-203.0429475,0.0001379,2]
[331700803,1720662638495,-150.0,0.00013798,2]
[331700805,1720662638504,-268.44067894,0.00013799,2]
[331700807,1720662638514,-279.29512999,0.000138,2]
[331700809,1720662638523,-331.04099143,0.000138,2]
[331700811,1720662638533,-268.44067893,0.000138,2]
[331700813,1720662638543,-203.04294744,0.000138,2]
[331700815,1720662638552,-268.44067893,0.00013813,2]
[331700817,1720662638562,-203.04294744,0.00013813,2]
[331700819,1720662638575,-268.44067893,0.00013825,2]
[331700821,1720662638585,-203.04294744,0.00013825,2]
[331700823,1720662638595,-150.0,0.00013833,2]
[331700824,1720662638605,-268.44067893,0.00013838,2]
[331700825,1720662638616,-203.04294744,0.00013838,2]
[331700826,1720662638626,-791.91051231,0.00013849,2]
[331700827,1720662638636,-268.44067893,0.0001385,2]
[331700828,1720662638645,-203.04294744,0.0001385,2]
[331700829,1720662638655,-1409.47788,0.0001386,2]
[331700830,1720662638666,-268.44067893,0.00013863,2]
[331700831,1720662638675,-203.04294744,0.00013863,2]
[331700832,1720662638685,-268.44067893,0.00013875,2]
[331700833,1720662638695,-1006.08753584,0.00013879,2]
[331700834,1720662638704,-2126.3,0.00013879,2]
[331700835,1720662638714,-500.0,0.00013879,2]
[331700836,1720662638724,-500.0,0.00013879,2]
[331700837,1720662638733,-500.0,0.00013879,2]
[331700838,1720662638743,-338.66740251,0.00013879,2]
[331700839,1720662638753,-283.79933411,0.00013879,2]
[331700840,1720662638763,-307.646993,0.00013879,2]
[331700841,1720662638773,-186.72426178,0.00013879,2]
[331700842,1720662638783,-500.0,0.00013879,2]
[331700843,1720662638793,-500.0,0.00013879,2]
[331700844,1720662638803,-225.64639698,0.00013879,2]
[331700845,1720662638812,-631.2,0.00013879,2]
[331700846,1720662638825,-296.11628813,0.00013879,2]
[331700847,1720662638834,-313.83910198,0.00013879,2]
[331700848,1720662638844,-162.05113157,0.00013879,2]
[331700849,1720662638855,-526.13723732,0.00013879,2]
[331700850,1720662638865,-193.77076055,0.00013879,2]
[331700851,1720662638876,-258.71480197,0.00013879,2]
[331700852,1720662638886,-298.44518791,0.00013879,2]
[331700853,1720662638896,-171.41818575,0.00013879,2]
[331700854,1720662638907,-444.77464813,0.00013879,2]
[331700855,1720662638917,-207.80840771,0.00013879,2]
[331700857,1720662638927,-2007.49,0.00013879,2]
[331700859,1720662638938,-635.62449703,0.00013879,2]
[331700861,1720662638948,-247.721366,0.00013879,2]
[331700863,1720662638958,-178.0031514,0.00013879,2]
[331700864,1720662638968,-281.98619505,0.00013879,2]
[331700866,1720662638979,-500.0,0.00013879,2]
[331700869,1720662638989,-1232.57,0.00013879,2]
[331700870,1720662638999,-177.0158332,0.00013879,2]
[331700872,1720662639009,-513.20797431,0.00013879,2]
[331700875,1720662639019,-513.45665774,0.00013879,2]
[331700877,1720662639028,-626.81282567,0.00013879,2]
[331700878,1720662639039,-500.0,0.00013879,2]
[331700880,1720662639049,-206.77881246,0.00013879,2]
[331700882,1720662639058,-525.31415145,0.00013879,2]
[331700884,1720662639068,-537.70050187,0.00013879,2]
[331700887,1720662639080,-244.57940383,0.00013879,2]
[331700888,1720662639090,-516.72180836,0.00013879,2]
[331700891,1720662639101,-513.30799379,0.00013879,2]
[331700892,1720662639111,-500.0,0.00013879,2]
[331700894,1720662639122,-500.0,0.00013879,2]
[331700896,1720662639131,-516.01881209,0.00013879,2]
[331700898,1720662639141,-474.95626421,0.00013879,2]
[331700900,1720662639151,-264176.15608906,0.0001388,2]
[331700902,1720662639160,-268.44067893,0.00013888,2]
[331700904,1720662639170,-730.92688402,0.00013889,2]
[331700907,1720662639180,-475.18187236,0.00013889,2]
[331700909,1720662639189,-5635.3042,0.00013899,2]
[331700910,1720662639199,-492.75489726,0.00013899,2]
[331700913,1720662639209,-2860.06564612,0.00013899,2]
[331700914,1720662639219,-303.79062832,0.00013899,2]
[331700917,1720662639229,-196.38906859,0.00013899,2]
[331700918,1720662639238,-291.1088,0.000139,2]
[331700920,1720662639248,-345.8401,0.000139,2]
[331700922,1720662639258,-105164.1788,0.000139,2]
[331700925,1720662639268,-3125.2468,0.000139,2]
[331700926,1720662639278,-174.98028023,0.000139,2]
[331700928,1720662639287,-153.14753228,0.000139,4]
[331700931,1720662639297,-268.44067893,0.000139,2]
[331700932,1720662639308,-1010.60931404,0.000139,2]
[331700934,1720662639317,-7500.0,0.000139,2]
[331700936,1720662639330,-653.60210363,0.000139,2]
[331700938,1720662639339,-360.0,0.00013915,2]
[331700940,1720662639349,-2126.3,0.00013934,2]
[331700942,1720662639359,-192.83482592,0.00013934,2]
[331700944,1720662639368,-500.0,0.00013934,2]
[331700946,1720662639378,-238.30967233,0.00013934,2]
[331700948,1720662639388,-413.5575551,0.00013934,2]
[331700950,1720662639398,-191.51055067,0.00013934,2]
[331700952,1720662639408,-631.2,0.00013934,2]
[331700954,1720662639418,-2007.49,0.00013934,2]
[331700956,1720662639428,-500.0,0.00013934,2]
[331700958,1720662639438,-1232.57,0.00013934,2]
[331700960,1720662639448,-500.0,0.00013934,2]
[331700962,1720662639458,-3098.83927116,0.00013964,2]
[331700964,1720662639468,-158.43703676,0.00013964,2]
[331700966,1720662639478,-169.45,0.0001398,2]
[331700968,1720662639488,-171.29805658,0.00013981,2]
[331700970,1720662639498,-150.0,0.00013986,2]
[331700972,1720662639508,-198.49354233,0.00013989,2]
[331700974,1720662639518,-2126.3,0.00013989,2]
[331700976,1720662639527,-500.0,0.00013989,2]
[331700978,1720662639537,-631.2,0.00013989,2]
[331700980,1720662639547,-2007.49,0.00013989,2]
[331700982,1720662639557,-500.0,0.00013989,2]
[331700984,1720662639567,-1232.57,0.00013989,2]
[331700986,1720662639580,-155.20939002,0.00013989,2]
[331700988,1720662639590,-155.3192533,0.00013989,2]
[331700990,1720662639600,-155.39412536,0.00013989,2]
[331700992,1720662639610,-209.33062068,0.00013989,2]
[331700994,1720662639620,-500.0,0.00013989,2]
[331700996,1720662639631,-251.83639386,0.00013989,2]
[331700998,1720662639640,-155.16698726,0.00013989,2]
[331701000,1720662639651,-169.45,0.0001399,2]
[331701002,1720662639661,-500.0,0.00013999,2]
[331701004,1720662639671,-340.90409862,0.00013999,2]
[331701006,1720662639681,-364.1783286,0.00013999,2]
[331701008,1720662639692,-7572.0429877,0.00013999,2]
[331701010,1720662639703,-500.0,0.00013999,2]
[331701012,1720662639713,-4117.2776892,0.00013999,2]
[331701014,1720662639723,-103733.2167676,0.00013999,2]
[331701016,1720662639733,-502.80704739,0.00013999,2]
[331701018,1720662639744,-10281.587245,0.00013999,2]
[331701020,1720662639754,-500.0,0.00013999,2]
[331701022,1720662639764,-159.46877028,0.00013999,2]
[331701024,1720662639773,-243.04753833,0.00013999,2]
[331701026,1720662639783,-155.20961672,0.00013999,2]
[331701028,1720662639792,-298.22781852,0.00013999,2]
[331701030,1720662639802,-224.82218023,0.00013999,2]
[331701032,1720662639812,-155.0,0.00013999,2]
[331701034,1720662639824,-37706.98758302,0.00014,2]
[331701055,1720662640029,-171.65879616,0.00013899,2]
[331701057,1720662640039,-137.29309284,0.00014,2]
[331701059,1720662640050,-384.30158449,0.00014,2]
[331701061,1720662640061,-2125.34602237,0.00014,2]
[331701063,1720662640075,-50045.45664028,0.00014,2]
[331701065,1720662640087,-405.79384232,0.00014,2]
[331701093,1720662640353,-36729.50559327,0.00014,2]
[331701095,1720662640372,-51440.7486333,0.00014,2]
[331701097,1720662640382,-3858878.4674454,0.00014,2]
[331701099,1720662640391,-155.0,0.00014,2]
[331701101,1720662640401,-59952.95916357,0.00014,2]
[331701102,1720662640457,2380.46634958,0.00011199,2]
[331701103,1720662640473,-410.72129903,0.00014,2]
[331701104,1720662640484,-2063.61796124,0.00014,2]
[331701105,1720662640495,-1248.47220057,0.00014,2]
[331701106,1720662640507,-715.03546825,0.00014,2]
[331701108,1720662640522,-1433.65601648,0.00014,2]
[331701110,1720662640532,-11712.7788,0.00014,2]
[331701385,1720662643214,-203.04294744,0.00013875,2]
[331701386,1720662643224,-155.45856743,0.00013999,2]
[331701387,1720662643233,-1749.91664775,0.00014,2]
[331701389,1720662643244,-539.1908103,0.00014,2]
[331701693,1720662646154,-855.07,0.000131,2]
[331701696,1720662646163,-1.38024414,0.00013178,2]
[331701736,1720662646340,-174.18975586,0.00013178,2]
[331701738,1720662646350,-200.12753917,0.00013919,2]
[331701740,1720662646359,-202.42492557,0.00013999,2]
[331701742,1720662646369,-457.31103575,0.00014,2]
[331701744,1720662646381,-1001.66769661,0.00014,2]
[331701746,1720662646392,-3145.88609909,0.00014,2]
[331701995,1720663057255,369.60367917,0.00011199,2]
[331701996,1720663090992,540.48,0.00010833,2]
[331701997,1720663360150,367.1890923,0.00011199,2]
[331701998,1720663420521,278.55811546,0.00011199,2]
[331701999,1720663477239,4634.221036,0.00011199,2]
[331702012,1720663729427,402.34156552,0.00011199,2]
[331702013,1720663745478,513.45,0.00010637,2]
[331702014,1720663795836,1000.0,0.00027,120]
[331702017,1720663822951,1286.84614778,0.00011199,2]
[331702021,1720663833700,-208.24,0.00012566,2]
[331702022,1720663833710,-250.0,0.00012613,2]
[331702023,1720663833721,-173.18,0.00012615,2]
[331702024,1720663833730,-1468.7,0.00012707,2]
[331702025,1720663833740,-4467.23901196,0.00012707,2]
[331702026,1720663833749,-204.7,0.00012871,2]
[331702027,1720663833759,-513.45,0.00012901,2]
[331702028,1720663833768,-1000.0,0.00012985,2]
[331702029,1720663833778,-300.0,0.00012998,2]
[331702030,1720663833788,-1383.32,0.00012999,2]
[331702031,1720663833798,-1250.0,0.00013,2]
[331702032,1720663833808,-617.86,0.00013,2]
[331702033,1720663833818,-1729.9,0.00013,2]
[331702034,1720663833828,-150.99,0.00013097,2]
[331702035,1720663833838,-440.91,0.000131,2]
[331702036,1720663833849,-1500.0,0.000131,4]
[331702037,1720663833859,-1348.16,0.000131,2]
[331702038,1720663833869,-371.02794291,0.00013128,2]
[331702040,1720663833885,-300.49,0.00013178,2]
[331702041,1720663833895,-3000.0,0.000132,4]
[331702042,1720663833905,-855.07,0.00013241,2]
[331702043,1720663833915,-150.0,0.00013299,2]
[331702044,1720663833925,-4600.0,0.000133,4]
[331702045,1720663833935,-4380.36688313,0.000134,4]
[331702046,1720663833947,-513.45,0.000134,4]
[331702047,1720663833960,-1206.18311687,0.000134,4]
[331702048,1720663833969,-228.641867,0.00013452,2]
[331702049,1720663833979,-300.0,0.00013472,2]
[331702050,1720663833989,-336.24809927,0.000135,4]
[331702051,1720663834000,-3401.1581367,0.000135,4]
[331702052,1720663834027,-3862.59376403,0.000135,4]
[331702053,1720663834037,-155.98483515,0.00013516,2]
[331702054,1720663834047,-300.0,0.00013516,2]
[331702055,1720663834057,-1500.0,0.000136,4]
[331702056,1720663834066,-150.0,0.00013652,2]
[331702057,1720663834076,-2705.51974962,0.0001369,2]
[331702058,1720663834085,-250.0,0.00013699,2]
[331702059,1720663834095,-847.42,0.00013699,2]
[331702060,1720663834105,-1500.0,0.000137,5]
[331702061,1720663834114,-1681.672,0.0001372,2]
[331702062,1720663834124,-444.3593089,0.0001372,2]
[331702063,1720663834142,-37836.6406911,0.0001372,2]
[331702064,1720663834151,-1206.109,0.0001372,2]
[331702065,1720663834160,-5182.0,0.0001372,2]
[331702066,1720663834169,-1046.35728897,0.0001372,2]
[331702067,1720663834178,-1652.364,0.0001378,2]
[331702068,1720663834187,-433.3914,0.0001378,2]
[331702069,1720663834196,-1500.0,0.000138,5]
[331702070,1720663834206,-309.00006742,0.00013879,2]
[331702071,1720663834215,-500.0,0.00013879,2]
[331702072,1720663834225,-366.40051052,0.00013879,2]
[331702073,1720663834234,-506.94210234,0.00013879,2]
[331702074,1720663834244,-504.6859982,0.00013879,2]
[331702075,1720663834253,-524.81090039,0.00013879,2]